Workbook

Sheet Handout-Income & Education
A2: Name | B2: Merrymeeting Adult Education | E2: Instructor: | F2: Kevin Kilborn
A3: Class | B3: Introduction to Excel | E3: Date: | F3: 2009-06-15
A5: Exercise | B5: Homework
A6: PURPOSE: | B6: Use link to gather 2000 graduate statistics by county.
B7: Provide chart(s) and/or calculations to support the conclusion that income is improved by a degree.
E9: Ranking
B10: County | C10: Income | D10: College Graduates | E10: Income | F10: Graduate
B11: Cumberland | C11: 47182.95238
B12: Sagadahoc | C12: 44190.77778
B13: York | C13: 44189.2
B14: Androscoggin | C14: 42466.08333
B15: Kennebec | C15: 39325
B16: Lincoln | C16: 39184.86667
B17: Knox | C17: 37983.07143
B18: Hancock | C18: 35937.75
B19: Oxford | C19: 35092.59375
B20: Penobscot | C20: 34664.46154
B21: Waldo | C21: 33368.43478
B22: Franklin | C22: 31788.28571
B23: Somerset | C23: 30807.69565
B24: Aroostook | C24: 28149.04651
B25: Piscataquis | C25: 27991.625
B26: Washington | C26: 27590.52632
B28: Highest: | C28: =MAX(C11:C27) -> 47182.95238 | D28: =MAX(D11:D26) -> 0
B29: Lowest: | C29: =MIN(C11:C27) -> 27590.52632 | D29: =MIN(D11:D26) -> 0
A32: Link | B32: http://www.ers.usda.gov/Data/Education/EducListpct4.asp?st=ME&view=Percent&longname=Maine
B34: *Optionally rank each category will provide a different perspective when charting.

Sheet Demo
B2: MS Excel 2007-Introduction
B4: Want to learn spreadsheet magic? Students will learn Excel basics, entering and modifying data, navigating, moving, copying, formatting and printing. Students also learn to use formulas and functions. Come and learn some tricks to make the program easier.
B9: Class 1 | C9: Class 2 | D9: Class 3
B10: Absolute vs. Relative | C10: Charting | D10: Data Integrity
B11: Autofill - Summing | C11: Copy and Paste | D11: Functions & Formulas
B12: Entering Data | C12: Customizing Toolbar | D12: Protecting Workbooks
B13: Navigating | C13: Data Sources | D13: Resolving Errors
B14: Printing | C14: Verifying Data | D14: Sharing Workbooks
B15: User Interface | C15: Vlookup
B17: In the realm of accounting jargon a "spread sheet" or spreadsheet was and is a large sheet of paper with columns and rows that organizes data about transactions for a business person to examine. It spreads or shows all of the costs, income, taxes, and other related data on a single sheet of paper for a manager to examine when making a decision.
B21: http://dssresources.com/history/sshistory.html
E29: Sample: =D3-B13+C13
E30: A | F30: B | G30: C | H30: D
D31: 1 | E31: PAYEE | F31: CHECKS | G31: DEPOSITS | H31: BALANCE
D32: 2
D33: 3 | H33: 545.2
D34: 4
D35: 5 | E35: ELECTRIC | F35: 14.95
D36: 6 | E36: OIL | F36: 102.15
D37: 7 | E37: PHONE | F37: 36.8
D38: 8 | E38: DENTIST | F38: 42
D39: 9 | E39: SALARY | G39: 395
D40: 10 | E40: RENT | F40: 350
D41: 11 | E41: GAS CARD | F41: 12.93
D42: 12
D43: 13 | E43: TOTALS | F43: =SUM(F35:F41) -> 558.83 | G43: =SUM(G35:G41) -> 395 | H43: =H33-F43+G43 -> 381.37

Sheet User Interface
A1: User Interface
C7: Page Break. Page break view, shows where the pages end.
AL9: Column9 | AM9: Column1 | AN9: Column2
AL10: Title Bar
AM11: Quick Access Toolbar
AN12: Office
AN13: Save
AN14: Undo
AN15: Customize Toolbar
AN16: Title
AN17: Minimize
AN18: Maximize
AN19: Close
AL20: Ribbon
AM21: Tabs
AN22: Home
AN23: Insert
AN24: Page Layout
AN25: Formulas
AN26: Data
AN27: Review
AN28: Dialog Box Launcher
AL29: Workspace
AM30: Rows
AM31: Columns
AL32: Formula Bar
AM33: Name Box
AM35: Insert Function
AM36: Formula Bar
AL37: Worksheet Tabs
AM38: Navigation
AM39: Names
AM40: Insert Worksheet
B41: The office button contains much of the same functionality previously found under file. | AM41: Scroll
B42: Customizable tools used frequently. | AL42: Status
B43: Displays the name of the file, also known as the workbook. | AM43: Macro Notification
B44: Minimize, maximize or close the window. | AM44: Previews
B45: The Ribbon is a new feature with Office 2007 and adds more power and intuitiveness to option selection. | AN45: Normal
B46: Contains the name of the cell or range name. | AN46: Page Layouts
B47: Contains the formula or the constant (text data), being edited. | AN47: Page Break
B48: Is noted by the highligted box. One or many cells or ranges may be selected at once. Use the combinations of Shift, Control, and Alt Keys along with mouse dragging. | AM48: Zoom
B49: Columns refer to the vertical axis of the spreadsheet.
B50: Selects all rows and columns.
B51: Rows refer to the horizonal axis of the spreadsheet.
B52: Shows the current status.
B53: Provides navigation among worksheets. Allows you to add, delete, rename and move worksheets.
B54: Shows three distinct views, normal, page layout and page preview
B55: Change the magnification of the worksheet
B56: Vertical scroll, click the little arrow, click in the scroll bar, or grab the slider and drag it.
B57: Horizontal scroll, click the little arrow, click in the scroll bar, or grab the slider and drag it.

Sheet Class Schedule
A1: √ | D1: =NOW() -> 40000.69103 | F1: Class Number: | G1: 5
B2: Topic: | C2: Review Homework. Information is contained in separate sources.
B3: Merrymeeting Adult Education | F3: Instructor: Kevin Kilborn
B4: MS Excel 2007-Introduction | F4: 2009-06-15 | G4: → | H4: 2009-06-29
B5: Resource | C5: http://home.comcast.net/~kevinkilborn/Great Oaks/MAE/Downloads.aspx
B6: Class 1 | C6: 2009-06-15
B7: ~Time | C7: Plan - Monthly Expenses
A8: √ | B8: 06:00:00 | C8: What is Excel Magic (Introductions) Exercise Circa 1980 | J8: Short Cut Keys
A9: √ | B9: 06:45:00 | C9: User Interface: Differences 2003-2007; Short Cut Keys, F1 Help.
A10: √ | C10: New Spreadsheet (Office Button); Templates Just a calculator
A11: √ | B11: 07:00:00 | C11: Exercise: Moving/Copying
A12: √ | C12: Exercise: Editing: Rows & Columns: Size, Titles, Sum, Navigating
A13: √ | B13: 07:30:00 | C13: Break
A14: √ | B14: 07:45:00 | C14: Customize: Quick Access Toolbar (Spelling & Show Formulas)
A15: √ | B15: 08:00:00 | C15: Exercise: Monthly Budget, Summing, Formatting and Printing
A16: √ | B16: 07:45:00 | C16: Format & Print: Styles, Live Preview, Page Layout {Headers, Footers & Page Breaks}
B17: Homework | C17: http://office.microsoft.com/training/training.aspx?AssetID=RP100620721033&CTT=6&Origin=RC100620751033
B20: Class 2 | C20: 2009-06-22
B21: ~Time | C21: Plan - Maine Towns & Counties
A22: √ | B22: 06:00:00 | C22: Exercise: Monthly Expenses Formatting and Printing
B23: 06:30:00 | C23: Relative & Absolute References
B24: 07:15:00 | C24: Exercise: Use a Table, enter data, proof it, format, sum rows insert graphic.
C25: Exercise: Configure Voice Proofing {Text to Speech F1}, Spell Checker, Show Formulas. Proof your data.
B26: 07:30:00 | C26: Break
B27: 07:45:00 | C27: Data Source Options: Manually, Copying {Paste Special}, Data Sources
B28: 08:45:00 | C28: Homework: Is there a correlation between, create a chart(s) to demonstrate your findings. education and salary?
B29: Homework | C29: http://www.ers.usda.gov/Data/Education/EducListpct4.asp?st=ME&view=Percent&longname=Maine
B30: Video | C30: http://office.microsoft.com/training/training.aspx?AssetID=RC101757361033&CTT=6&Origin=RP101757341033
B33: Class 3 | C33: 2009-06-29
B34: ~Time | C34: Plan - Functions, Fun & Protection
A35: √ | B35: 06:00:00 | C35: Review Homework | J35: Formulas & Functions
C36: Exercise: Copy From Maine Towns File
C37: 1) What is the average income by county? 2) How many towns in each county?
C38: 3) What town has the highest income? 4) Which town has the smallest income?
C39: Step: Chart % Average Income by county.
C40: Exercise: Copy & Paste, vLookup
B41: 07:30:00 | C41: Break
B42: 07:45:00 | C42: Exercise: Open Maine Demographics.xls and answer these questions: What's the smallest town? What's the average population per municipality
C43: 1. What is the population of the largest town? 2. What is the smallest town?
C44: 3. What is the average population for towns in Maine?
C45: Demostrate: Combine Income with Population Data
C46: Exercise: Excel as a calculator
B47: Extra
C48: Exercise: Arithmetic functions, operator precedence ((Use Parenthesis))
C49: Exercise: Date functions
C50: Exercise: String functions to join (concatenate) and separate (parse) data.
C51: Costly Mistakes
C52: Extra
C53: Using Macros
C54: Exercise: Determine the days with a Full Moon for 2010
C55: Exercise: Numerology
C56: Exercise: Resolve errors, Tracing

Sheet Shortcut Keys
C2: ShortCut and HotKeys
B23: Type | C23: Function | D23: Keys
B24: Data | C24: Text Import | D24: Alt;A+F+T
B25: Data | C25: Web Import | D25: Alt;A+F+W
B26: Edit | C26: Select all | D26: Alt+A
B27: Edit | C27: Inserts a carriage return | D27: Alt+Enter
B28: Edit | C28: Copy selection | D28: Ctrl+C
B29: Edit | C29: Paste buffer | D29: Ctrl+V
B30: Edit | C30: Cut selection | D30: Ctrl+X
B31: Edit | C31: Last character in selection | D31: End
B32: Edit | C32: First character in selection | D32: Home
B33: Error | C33: Trace dependents | D33: ALT;M+D
B34: Error | C34: Trace precedents | D34: Alt;M+P
B35: Format | C35: Bold face | D35: Ctrl+B
B36: Format | C36: Print Preview | D36: Ctrl+F2
B37: Format | C37: Italics | D37: Ctrl+I
B38: Format | C38: Underline | D38: Ctrl+U
B39: Navigate | C39: End of Document | D39: Ctrl+End
B40: Navigate | C40: Top of Document | D40: Ctrl+Home
B41: Navigate | C41: Down | D41: Down Arrow
B42: Navigate | C42: Down | D42: Enter
B43: Navigate | C43: Right | D43: Right Arrow
B44: Navigate | C44: Up | D44: Shift+Enter
B45: Navigate | C45: Left | D45: Shift+Tab
B46: Navigate | C46: Right | D46: Tab
B47: Navigate | C47: UP | D47: Up Arrow
B48: Ribbon | C48: Switch between Tabs Press alt release & press first letter of tab | D48: Alt; H
B49: Ribbon | C49: Autosize Rows | D49: Alt;H+O+A
B50: Ribbon | C50: Autosize Columns | D50: Alt;H+O+I
B51: Ribbon | C51: Show all comments | D51: Alt;R+A
B52: Ribbon | C52: Split window into panes | D52: Alt;W+S
B53: Ribbon | C53: Minimize/Maximize Ribbon | D53: Ctrl+F1
B54: Ribbon | C54: Help | D54: F1
B55: Search | C55: Find Text | D55: Ctrl+F
B56: Search | C56: Goto specific cell or range name | D56: Ctrl+G
B57: Navigate | C57: Left | D57: Left Arrow

Sheet Cut & Paste
A3: Moving & Copying Data, Cells, Formats and Columns Copy an answer into the column for each answer
A5: Right-Click
C6: Choices
C7: A. Messy And Confusing Repeated Operation.
C8: A. In order to make word processors appear to be bug-free in comparison.
C9: A. "Would you like fries with that?"
C10: A. To make Excel seem faster.
C11: A. One - But only if "light bulbs" can be found in the Microsoft Knowledge Base. | D11: KeyBoard ShortCuts
C12: A. He looks at your shoes when he talks to you. | D12: Ctrl-C | E12: Copy
C13: A. Oil of OLE. | D13: Ctrl-X | E13: Cut
D14: Ctrl-V | E14: Paste
A16: Question | B16: Match | C16: Answer | D16: Result | E16: Comment
A17: Q. Why did Microsoft develop Access? | B17: A. To make Excel seem faster. | D17: =IF(B17=C17,"Correct","Incorrect") -> Incorrect | E17: =IF(D17="Correct","Techniques that increase Excel performance","") -> 
A18: Q. How do you identify an extroverted spreadsheet user? | B18: A. He looks at your shoes when he talks to you. | D18: =IF(B18=C18,"Correct","Incorrect") -> Incorrect | E18: =IF(D18="Correct","This can get consuming","") -> 
A19: Q. What does MACRO stand for? | B19: A. Messy And Confusing Repeated Operation. | D19: Incorrect | E19: =IF(D19="Correct","Macros are powerful but it's easy to loose track","") -> 
A20: Q. What's the name of the new skin care product that Procter & Gamble has developed for MS Office VBA developers? | B20: A. Oil of OLE. | C20: A. Oil of OLE. | D20: Correct | E20: =IF(D20="Correct","Exchange data between Office Products","") -> Exchange data between Office Products
A21: Q. How many Excel Tech Support technicians does it take to change a light bulb? | B21: A. One - But only if "light bulbs" can be found in the Microsoft Knowledge Base. | D21: Incorrect | E21: =IF(D21="Correct","F1 (Help) & Google","") -> 
A22: Q. Why were spreadsheets invented? | B22: A. In order to make word processors appear to be bug-free in comparison. | D22: Incorrect | E22: =IF(D22="Correct","A Huge Time Savings","") -> 
A23: Q. What is the most frequent question asked by a would-be spreadsheet consultant? | B23: A. "Would you like fries with that?" | D23: Incorrect | E23: =IF(D23="Correct","Doesn't this seem easy?","") -> 

Sheet File Extensions
B1: File Extensions
A3: Occurrence | B3: Format | C3: Extension | D3: Description
A4: High | B4: Excel Workbook | C4: .xlsx | D4: The default Office Excel 2007 XML-based file format. Cannot store Microsoft Visual Basic for Applications (VBA) macro code or Microsoft Office Excel 4.0 macro sheets (.xlm).
A5: High | B5: Excel Workbook (code) | C5: .xlsm | D5: The Office Excel 2007 XML-based and macro-enabled file format. Stores VBA macro code or Excel 4.0 macro sheets (.xlm).
A6: Low | B6: Excel Binary Workbook | C6: .xlsb | D6: The Office Excel 2007 Binary file format (BIFF12).
A7: High | B7: Template | C7: .xltx | D7: The default Office Excel 2007 file format for an Excel template. Cannot store VBA macro code or Excel 4.0 macro sheets (.xlm).
A8: Medium | B8: Template (code) | C8: .xltm | D8: The Office Excel 2007 macro-enabled file format for an Excel template. Stores VBA macro code or Excel 4.0 macro sheets (.xlm).
A9: High | B9: Excel 97- Excel 2003 Workbook | C9: .xls | D9: The Excel 97 - Excel 2003 Binary file format (BIFF8).
A10: Medium | B10: Excel 97- Excel 2003 Template | C10: .xlt | D10: The Excel 97 - Excel 2003 Binary file format (BIFF8) for an Excel template.
A11: Low | B11: Microsoft Excel 5.0/95 Workbook | C11: .xls | D11: The Excel 5.0/95 Binary file format (BIFF5).
A12: Medium | B12: XML Spreadsheet 2003 | C12: .xml | D12: XML Spreadsheet 2003 file format (XMLSS).
A13: Data | B13: XML Data | C13: .xml | D13: XML Data format.
A14: Low | B14: Excel Add-In | C14: .xlam | D14: The Office Excel 2007 XML-based and macro-enabled Add-In, a supplemental program that is designed to run additional code. Supports the use of VBA projects and Excel 4.0 macro sheets (.xlm).
A15: Low | B15: Excel 97-2003 Add-In | C15: .xla | D15: The Excel 97-2003 Add-In, a supplemental program that is designed to run additional code. Supports the use of VBA projects.
A16: Low | B16: Excel 4.0 Workbook | C16: .xlw | D16: An Excel 4.0 file format that saves only worksheets, chart sheets, and macro sheets. You can open a workbook in this file format in Office Excel 2007, but you cannot save an Excel file to this file format.
A17: Low | B17: Formatted Text (Space-delimited) | C17: .prn | D17: Lotus space-delimited format. Saves only the active sheet.
A18: Data | B18: Text (MS-DOS) | C18: .txt | D18: Saves a workbook as a tab-delimited text file for use on the MS-DOS operating system, and ensures that tab characters, line breaks, and other characters are interpreted correctly. Saves only the active sheet.
A19: Low | B19: Unicode Text | C19: .txt | D19: Saves a workbook as Unicode text, a character encoding standard that was developed by the Unicode Consortium.
A20: Data | B20: CSV (comma delimited) | C20: .csv | D20: Saves a workbook as a comma-delimited text file for use on another Windows operating system, and ensures that tab characters, line breaks, and other characters are interpreted correctly. Saves only the active sheet.
A21: Data | B21: DIF | C21: .dif | D21: Data Interchange Format. Saves only the active sheet.
A22: Low | B22: SYLK | C22: .slk | D22: Symbolic Link Format. Saves only the active sheet.
A23: Database | C23: db | D23: Access, Oracle, SQL/Server, etc.
A24: Data | B24: XLSX | C24: .xlsx | D24: Excel file type

Sheet Exercise-Maine Demographic
A1: Maine Demographics
A2: June 2006
A3: Yes
A4: Town | B4: Type | C4: County | D4: Population | E4: Income
A5: Cambridge | B5: Town | C5: Somerset | D5: 530 | E5: 28516
A6: Eastbrook | B6: Town | C6: Hancock | D6: 364 | E6: 31667
A7: Fryburg | B7: Town | C7: Oxford | D7: 3326 | E7: 34333
A8: Kingfield | B8: Town | C8: Franklin | D8: 1148 | E8: 29250
A9: Minot | B9: Town | C9: Androscoggin | D9: 2866 | E9: 47557
A10: Wilton | B10: City | C10: Franklin | D10: 4200 | E10: 34562
D11: =SUBTOTAL(109,[Population]) -> 12434 | E11: =SUBTOTAL(101,[Income]) -> 34314.16667

Sheet Excercise-Expenses
B2: Monthly Household Budget for 2009
C4: Pro-Rata
B5: Category | C5: Self | D5: Spouse | E5: Combined
B6: Insurance (Life & Car) | C6: 85 | D6: 90 | E6: =SUM(C6:D6) -> 175
B7: Clothing | C7: 50 | D7: 75 | E7: 125 | G7: Exercise 1
B8: CMP | C8: 100 | D8: 0 | E8: 100
B9: Gasoline | C9: 55 | D9: 150 | E9: 205 | G9: Exercise 2
B10: Grocery | C10: 200 | D10: 400 | E10: 600
B11: Heating Oil | C11: 125 | E11: 125
B12: Memberships | C12: 0 | D12: 71 | E12: 71
B13: Mortgage/Rent | C13: 1000 | D13: 0 | E13: 1000
B14: Spending Money | C14: 100 | D14: 0 | E14: 100
B15: Verizon Landline | C15: 60 | D15: 0 | E15: 60
B16: Wireless | C16: 70 | D16: 70 | E16: 140
B22: Expenses: | C22: =SUM(C6:C21) -> 1845 | D22: =SUM(D6:D21) -> 856 | E22: =SUM(C22:D22) -> 2701
B24: Gross Income | C24: 45000 | D24: 20000 | E24: =SUM(C24:D24) -> 65000
J27: Move to Cell: | K27: e10
B50: Monthly Household Budget for 2009
C52: Pro-Rata | G52: Color | I52: Yearly Outlook
B53: Category | C53: Self | D53: Spouse | E53: Combined | G53: Legend | I53: Combined Salary
B54: Insurance (Life & Car) | C54: 85 | D54: 90 | E54: =SUM(C54:D54) -> 175 | I54: =E72 -> 65000
B55: Clothing | C55: 50 | D55: 75 | E55: 125 | G55: Exercise 1
B56: CMP | C56: 100 | D56: 0 | E56: 100
B57: Gasoline | C57: 55 | D57: 150 | E57: 205 | G57: Exercise 2 | I57: Payroll Deductions
B58: Grocery | C58: 200 | D58: 400 | E58: 600 | I58: Health Ins | J58: 401K | K58: 20% Tax
B59: Heating Oil | C59: 125 | E59: 125 | G59: AutoSum | I59: =300*12 -> 3600 | J59: =(C70*0.1)*12 -> 2214 | K59: =I54*0.2 -> 13000
B60: Memberships | C60: 0 | D60: 71 | E60: 71
B61: Mortgage/Rent | C61: 1000 | D61: 0 | E61: 1000 | G61: Ref 2 Cell | I61: Take Home
B62: Spending Money | C62: 100 | D62: 0 | E62: 100 | I62: =I54-K59 -> 52000
B63: Verizon Landline | C63: 60 | D63: 0 | E63: 60 | G63: Formulas
B64: Wireless | C64: 70 | D64: 70 | E64: 140 | J64: Monthly Exp | K64: Yearly Expenses
G65: Clear | J65: =E70 -> 2701 | K65: =J65*12 -> 32412
J67: Yearly Take Home | K67: Monthly Surplus
J68: =I62-K65 -> 19588 | K68: =J68/12 -> 1632.333333
B70: Expenses: | C70: =SUM(C54:C69) -> 1845 | D70: =SUM(D54:D69) -> 856 | E70: =SUM(C70:D70) -> 2701
B72: Gross Income | C72: 45000 | D72: 20000 | E72: =SUM(C72:D72) -> 65000

Sheet References
A1: Subject | B1: Link
A2: 2003 Commands in 2007 | B2: http://images.amazon.com/media/i3d/01/excel2007tipcard.pdf
A3: Chart | B3: http://office.microsoft.com/training/training.aspx?AssetID=RP101757341033&CTT=6&Origin=RC101757361033
A4: CIO Costly Mistakes | B4: http://www.cio.com/article/131500/Eight_of_the_Worst_Spreadsheet_Blunders?page=2
A5: Copy visible cells only: | B5: http://www.mrexcel.com/articles/excel-copy-subtotals.php
A6: Dates | B6: http://support.microsoft.com/kb/214094
A7: Educational Level | B7: http://www.ers.usda.gov/Data/Education/EducListpct4.asp?st=ME&view=Percent&longname=Maine
A8: Household Formulas | B8: http://www.debtsmart.com/cgi-pl/article.cgi?cmd=category&cat=Household%20Math&page=1
A9: MACRO recommendations | B9: http://www.financialmodelingguide.com/analytical-tools/excel-vba-macro/
A10: Maine Population | B10: http://quickfacts.census.gov/qfd/states/23/23001.html
A11: Mouse Pointers | B11: http://tipsfromdoris.net/index.php?option=com_content&task=view&id=36&Itemid=55
A12: Office Product Connectivity | B12: http://download.microsoft.com/download/8/9/5/89585721-4774-4b5e-856b-c9db5d2980b3/Data_Integration_Fact_Sheet.pdf
A13: Operators and Precedence | B13: http://office.microsoft.com/en-us/excel/HP100788861033.aspx
A14: Performance Tuning | B14: http://msdn.microsoft.com/en-us/library/aa730921.aspx
A15: Quick Reference | B15: http://www.customguide.com/pdf/excel-quick-reference-2007.pdf
A16: Recording a Macro | B16: http://www.dummies.com/how-to/content/how-to-record-a-macro-in-excel-2007.html
A17: Shortcut & HotKeys | B17: http://www.lboro.ac.uk/it/access/excel2007-shortcuts.html
A18: Tour of Windows XP | B18: http://www.microsoft.com/windowsxp/pro/evaluation/tours/tour.mspx
A19: Training | B19: http://www.bilkent.edu.tr/~ozgu/CS121WEB/word1.htm
A20: Typing Tutor | B20: http://www.typingweb.com/tutor/
A21: VisiCalc | B21: http://www.bricklin.com/history/intro.htm
A22: Vlookup | B22: http://www.ozgrid.com/Excel/excel-vlookup-formula.htm

Sheet Customize Toolbar
A1: Customizing the Toolbar
H3: Spelling | M3: Formulas | R3: Speech
C8: Page Break. Page break view, shows where the pages end.
AL10: Column9 | AM10: Column1 | AN10: Column2
AL11: Title Bar
AM12: Quick Access Toolbar
AN13: Office
AN14: Save
AN15: Undo
AN16: Customize Toolbar
AN17: Title
AN18: Minimize
AN19: Maximize
AN20: Close
AL21: Ribbon
AM22: Tabs
AN23: Home
AN24: Insert
AN25: Page Layout
AN26: Formulas
AN27: Data
AN28: Review
AN29: View
AN30: Dialog Box Launcher
AL31: Workspace
AM32: Rows
AM33: Columns
AL34: Formula Bar
AM35: Name Box
AM36: Insert Function
AM37: Formula Bar
AL38: Worksheet Tabs
AM39: Navigation
AM40: Names
AM41: Insert Worksheet
AM42: Scroll
AL43: Status
AM44: Macro Notification
AM45: Previews
AN46: Normal
AN47: Page Layouts
AN48: Page Break
AM49: Zoom
C50: Macro Notification. Control macros from here or the developer's tab.

Sheet Cell Errors
D1: Split
A2: Error Value | B2: Meaning | C2: Causes
A3: #DIV/0 | B3: Division by Zero | C3: Division is occuring on 0 or blank. | E3: County | F3: Income | G3: College Graduates | H3: Delta | I3: County Rank | J3: Std. Deviation | L3: Rank
B4: No value available | C4: Don't yet have the necessary information. | E4: Cumberland | F4: 37746.3619 | G4: 45295.63429 | H4: =G4-F4 -> 7549.272381 | I4: =VLOOKUP(E4,$L$4:$M$17,2,FALSE) -> 5 | J4: =STDEV(G4,NationalAverage) ->  | L4: Androscoggin | M4: 3
B5: Excel doesn't recognize a name | C5: Incorrect range name | E5: Sagadahoc | F5: 35352.62222 | G5: 42423.14667 | H5: =G5-F5 -> 7070.524444 | I5: =VLOOKUP(E5,$L$4:$M$17,2,FALSE) -> 15 | L5: Aroostook | M5: 2
B6: You specified an intersection of two cells ranges whose cells don't actually intersect | C6: A space was placed in a functions arguments. | E6: York | F6: 35351.36 | G6: 42421.632 | H6: 7070.272 | L6: Cumberland | M6: 5
B7: Problems with a number in the formula | C7: Number is too large or an invalid argument in a function. | E7: Androscoggin | F7: 33972.86667 | G7: 40767.44 | H7: =AH7-F7 -> -33972.86667 | I7: 3 | L7: Franklin | M7: 4
B8: Invalid cell reference | C8: Occurs when a cell is deleted after it was referenced. | E8: Kennebec | F8: 31460 | G8: 37752 | H8: 6292 | I8: 1 | L8: Kennebec | M8: 1
B9: Wrong type of arguments in a function or wrong type of operator | C9: Trying to do a math function on text values. | E9: Lincoln | F9: 31347.89333 | G9: 37617.472 | H9: 6269.578667 | I9: 7 | L9: Knox | M9: 6
E10: Knox | F10: 30386.45714 | G10: 36463.74857 | H10: =E10-F10 ->  | I10: 6 | L10: Lincoln | M10: 7
E11: Hancock | F11: 28750.2 | G11: 34500.24 | H11: =G11-F11 -> 5750.04 | L11: Oxford | M11: 9
B12: Masking Errors | E12: Oxford | F12: 28074.075 | G12: 33688.89 | H12: 5614.815 | I12: 9 | L12: Penobscot | M12: 10
B13: ISBLANK | E13: Penobscot | F13: 27731.56923 | G13: 33277.88308 | H13: 5546.313846 | I13: 10 | L13: Piscataquis | M13: 12
B14: ISERR | E14: Waldo | F14: 26694.74783 | G14: 32033.69739 | H14: 5338.949565 | I14: 13 | L14: Sagadahoc | M14: 15
B15: ISERROR | E15: Franklin | F15: 25430.62857 | G15: 30516.75429 | H15: 5086.125714 | I15: 4 | L15: Somerset | M15: 8
B16: ISLOGICAL | E16: Somerset | F16: 24646.15652 | G16: 29575.387826087 | H16: 4929.231304 | I16: 8 | L16: Waldo | M16: 13
B17: ISNA | E17: Aroostook | F17: 22519.23721 | G17: 27023.08465 | H17: =G17 F17 ->  | I17: 2 | L17: Washington | M17: 11
B18: ISNONTEXT | E18: Piscataquis | F18: 22393.3 | G18: 26871.96 | H18: 4478.66 | I18: 12 | L18: York | M18: 14
B19: ISNUMBER | E19: Washington | F19: 22072.42105 | G19: 26486.90526 | H19: 4414.484211 | I19: 11
B20: ISREF
B21: ISTEXT | E21: Highest: | F21: =MAX(RangeIncome) ->  | G21: =MAX(G4:G19) -> 45295.63429 | H21: =MEDIAN(G21) -> 45295.63429 | I21: =SUM(I4:I19) -> 
E22: Lowest: | F22: =MIN(F4:F20) -> 22072.42105 | G22: =MIN(G4:G19) -> 26486.90526 | H22: =MIN(H4:H19) -> 
E23: Average: | F23: =SUM(F4:F19)/0 ->  | G23: =AVERAGE(G4:G19) -> 35142.69921 | H23: =SUM(H4:H20)/COUNT(H4:H19) -> 
E24: National Average:

Sheet Moon
B4: http://aa.usno.navy.mil/cgi-bin/aa_moonphases.pl?year=2009&ZZZ=END
B5: Select Range, Convert Text to Columns
B6: Delete all data not pertaining to Full Moon, Delete Hours and Minutes of Full Moon
B7: Concatenate Month and Day
B8: Select all Dates and copy values only
B9: Format to Date Column (Month, Day and add 2009)
B10: Determine the days nn.nn of the moon's cycle.
B11: Average
B14: Day | C14: Hour | D14: Minutes
A15: Jan | B15: 11 | C15: 3 | D15: 27 | F15: =A15 & " " &B15& ", 2009 " & C15 & ":" &D15 -> Jan 11, 2009 3:27 | G15: =ROUND(F16-F15,2) -> 29.47
A16: Feb | B16: 9 | C16: 14 | D16: 49 | F16: =A16 & " " &B16& ", 2009 " & C16 & ":" &D16 -> Feb 9, 2009 14:49 | G16: =ROUND(F17-F16,2) -> 29.49
A17: Mar | B17: 11 | C17: 2 | D17: 38 | F17: Mar 11, 2009 2:38 | G17: 29.51
A18: Apr | B18: 9 | C18: 14 | D18: 56 | F18: Apr 9, 2009 14:56 | G18: 29.55
A19: May | B19: 9 | C19: 4 | D19: 1 | F19: May 9, 2009 4:1 | G19: 29.59
A20: Jun | B20: 7 | C20: 18 | D20: 12 | F20: Jun 7, 2009 18:12 | G20: 29.63
A21: Jul | B21: 7 | C21: 9 | D21: 21 | F21: Jul 7, 2009 9:21 | G21: 29.65
A22: Aug | B22: 6 | C22: 0 | D22: 55 | F22: Aug 6, 2009 0:55 | G22: 29.63
A23: Sep | B23: 4 | C23: 16 | D23: 3 | F23: Sep 4, 2009 16:3 | G23: 29.59
A24: Oct | B24: 4 | C24: 6 | D24: 10 | F24: Oct 4, 2009 6:10 | G24: 29.54
A25: Nov | B25: 2 | C25: 19 | D25: 14 | F25: Nov 2, 2009 19:14 | G25: 29.51
A26: Dec | B26: 2 | C26: 7 | D26: 30 | F26: Dec 2, 2009 7:30 | G26: 29.49
A27: Dec | B27: 31 | C27: 19 | D27: 13 | F27: Dec 31, 2009 19:13 | G27: -40178.8
G29: =ROUND(AVERAGE(G15:G26),2) -> 29.55

Sheet Functions
B1: Formulas and Functions
A4: Arithmetic
A5: Prime Numbers | B5: Seed | C5: 10
A6: =COLUMN() -> 1 | B6: =IF(COLUMN() <= PrimeSeed,COLUMN(),"") -> 2 | C6: 3 | D6: 4 | E6: 5 | F6: 6 | G6: 7 | H6: 8 | I6: 9 | J6: 10 | AH6: =IF(COLUMN() <= PrimeSeed,COLUMN(),"") ->  | BN6: =IF(COLUMN() <= PrimeSeed,COLUMN(),"") -> 
B7: =IFERROR(IF(IsPrime(B6),"prime",""),"") -> prime | C7: =IFERROR(IF(IsPrime(C6),"prime",""),"") -> prime | E7: prime | G7: prime | BO7: =IFERROR(IF(IsPrime(BO6),"prime",""),"") -> 
A8: =ListPrimes(PrimeSeed) -> 2, 3, 5, 7, | D8: =IF(D$6=2,"Prime",IF(AND((MOD(D$6,ROW(INDIRECT("2:"&ROUNDUP(SQRT(D$6),0))))<>0))=TRUE,"Prime","")) ->  | I8: Prime
I9: =IF(MIN(MOD($I$6,ROW(INDIRECT("2:"&INT(SQRT($I$6))))))=0,"not prime","prime") -> prime
A14: Fibonacci Sequence | B14: 5 | C14: Seed | D14: 1 | E14: Seed 2 | F14: 2
A15: Result | B15: =Seed -> 1 | C15: =Seed2 -> 2 | D15: =IF(COLUMN()-3<Fibonacci,B15+C15,0) -> 3 | E15: 5 | F15: 8 | G15: 13 | H15: 0 | I15: 0 | J15: 0 | K15: 0 | L15: 0 | M15: 0 | N15: 0 | O15: 0 | P15: 0 | Q15: 0 | R15: 0 | S15: 0 | T15: 0 | U15: 0 | V15: 0 | W15: 0 | X15: 0 | Y15: 0 | Z15: 0 | AA15: 0 | AB15: 0 | AC15: 0 | AD15: 0
A17: Doubling a Penny | B17: 28
A18: Result | B18: 0.01 | C18: =B18* 2 -> 0.02 | D18: =IF(COLUMN()-2 < Days,C18* 2,0) -> 0.04 | E18: 0.08 | F18: 0.16 | G18: 0.32 | H18: 0.64 | I18: 1.28 | J18: 2.56 | K18: 5.12 | L18: 10.24 | M18: 20.48 | N18: 40.96 | O18: 81.92 | P18: 163.84 | Q18: 327.68 | R18: 655.36 | S18: 1310.72 | T18: 2621.44 | U18: 5242.88 | V18: 10485.76 | W18: 20971.52 | X18: 41943.04 | Y18: 83886.08 | Z18: 167772.16 | AA18: 335544.32 | AB18: 671088.64 | AC18: 1342177.28 | AD18: 0 | AE18: 0 | AF18: 0 | AG18: 0 | AH18: 0 | AI18: 0 | AJ18: 0 | AK18: 0 | AL18: 0 | AM18: 0 | AN18: 0 | AO18: 0 | AP18: 0 | AQ18: 0 | AR18: 0
A20: Circles
A21: Pi | B21: 3.1415926
A22: Radius | B22: 5
A23: Area of a Circle | B23: =Pi*Radius^2 -> 78.539815
A24: Circumference | B24: =Pi*Radius*2 -> 31.415926
A27: Conversions
A28: 1 kilometer | B28: 0.62 | C28: miles
A29: 1 mile = | B29: 5280 | C29: feet
A30: 1 Acre = | B30: 43560 | C30: feet
A32: Feet in a 10K Race? | B32: =(10*MilesInKilometer)*FeetInMile -> 32736 | C32: feet
A33: How many feet in 4 acres | B33: =4*FeetInAcre -> 174240 | C33: feet
A35: Monthly Loan Payments
C44: http://www.1728.com/loanform.htm
A47: Loan (L) | B47: 15000
A48: Months (N) | B48: 48
A49: Rate (p) | B49: 0.05
A50: p/1200 (Factor) | B50: =(p/1200)*100 -> 0.004166666667
A51: Monthly Payment | B51: =(Factor+Factor/(((1+Factor)^N)-1)) * L -> 345.4394036 | C51: - OR - | D51: PMT Function | E51: =PMT(Factor,N,L) -> -345.4394036
A57: Mass is Significant but Speed Kills
F61: Constants
F62: 0.7375621493
F63: 0.3048
C66: http://www.ajdesigner.com/phpenergykenetic/kenetic_energy_equation.php
E67: Kilograms
A68: Mass (pounds) | B68: 2700 | C68: Velocity | D68: 20 | E68: =B68*0.45359237 -> 1224.699399
A69: Miles/Hour | B69: 20 | C69: =Velocity+(10*(COLUMN()-2)) -> 30 | D69: 40 | E69: 50 | F69: 60 | G69: 70 | H69: 80 | I69: 90 | J69: 100 | K69: 110 | L69: 120 | M69: 130 | N69: 140
A70: Meters/Second | B70: =((B69*5280)/3600) * MeterInAFoot -> 8.9408 | C70: 13.4112 | D70: 17.8816 | E70: 22.352 | F70: 26.8224 | G70: 31.2928 | H70: 35.7632 | I70: 40.2336 | J70: 44.704 | K70: 49.1744 | L70: 53.6448 | M70: 58.1152 | N70: 62.5856
A71: Pounds of Force | B71: =(0.5*Kilograms * B70^2) * JouleToPounds -> 36103.63172 | C71: 81233.17137 | D71: 144414.5269 | E71: 225647.6982 | F71: 324932.6855 | G71: 442269.4886 | H71: 577658.1075 | I71: 731098.5423 | J71: 902590.793 | K71: 1092134.86 | L71: 1299730.742 | M71: 1525378.44 | N71: 1769077.954
A74: Completion Date of Project
A75: Today: | B75: =MONTH(NOW())&"/"&DAY(NOW())&"/"&YEAR(NOW()) -> 7/6/2009 | E75: Holidays
A76: Start: | B76: 2009-05-20 | D76: Memorial Day | E76: 2009-05-20
A77: Day Length | B77: 6 | D77: July 4th. | E77: 2009-07-04
A78: Employees Utilized: | B78: 3 | D78: Company Picnic | E78: 2009-08-10
A79: Estimated Work | B79: 400 | D79: Labor Day | E79: 2009-09-07
A80: Combined Employee Days | B80: =ROUNDUP(B79/(B77*B78),0) -> 23
A81: Actual Date Value: | B81: =DATE(YEAR(StartDate),MONTH(StartDate),DAY(StartDate)+Employee_Days) -> 2009-06-12
A82: Actual Days | B82: =Actual_Date-StartDate -> 23
A83: Work Days: | B83: =NETWORKDAYS(StartDate,Actual_Date,Holidays) -> 17
A84: Work Day Value: | B84: =Actual_Date + (Actual_Days-Work_Days) -> 39982
A85: Delivery Date | B85: =MONTH(B84) & "/" & DAY(B84) & "/" & YEAR(B84) -> 6/18/2009
A87: http://support.microsoft.com/kb/214094
A89: Strings and Things
A90: FirstName | B90: Middle Initial | C90: Last Name | D90: Address1 | E90: Address2 | F90: City | G90: State | H90: Zip | I90: Prefix
A91: John | B91: S | C91: Smith | D91: 15 Maple St. | F91: Brunswick | G91: ME | H91: 4011 | I91: MR
A92: Sally | B92: J | C92: Pearson | D92: 22 Hope Avenue | E92: Box 302 | F92: Portland | G92: ME | H92: 4101 | I92: DR
A93: Mark | C93: Sullivan | D93: 232 Oak Stret | F93: Freeport | G93: ME | H93: 4532 | I93: MR
A94: Bill | B94: P | C94: Silver | D94: 17 Pleasant Street | E94: Box 1515 | F94: Westbrook | G94: ME | H94: 4521 | I94: SIR
A103: =TRIM(PROPER($I91) & " " & $A91 & " " & IF(ISBLANK($B91),$C91, $B91 &". " & $C91)) -> Mr John S. Smith | B103: =TRIM(PROPER(OFFSET($I91,COLUMN()-1,0)) & " " & OFFSET($A91,COLUMN()-1,0) & " " & IF(ISBLANK(OFFSET($B91,COLUMN()-1,0)),OFFSET($C91,COLUMN()-1,0), OFFSET($B91,COLUMN()-1,0) &". " & OFFSET($C91,COLUMN()-1,0))) -> Dr Sally J. Pearson | C103: =TRIM(PROPER(OFFSET($I91,COLUMN()-1,0)) & " " & OFFSET($A91,COLUMN()-1,0) & " " & IF(ISBLANK(OFFSET($B91,COLUMN()-1,0)),OFFSET($C91,COLUMN()-1,0), OFFSET($B91,COLUMN()-1,0) &". " & OFFSET($C91,COLUMN()-1,0))) -> Mr Mark Sullivan | D103: Sir Bill P. Silver
A104: =$D91 -> 15 Maple St. | B104: =OFFSET($D91,COLUMN()-1,0) -> 22 Hope Avenue | C104: =OFFSET($D91,COLUMN()-1,0) -> 232 Oak Stret | D104: =OFFSET($D91,COLUMN()-1,0) -> 17 Pleasant Street | E104: =OFFSET($D91,COLUMN()-1,0) -> 0 | F104: 0 | G104: 0 | H104: 0 | I104: 0
A105: =IF(ISBLANK($E91),$F91 & ", " & $G91 & " " & TEXT($H91,"00000"),$E91 & CHAR(10) & $F91 & ", " & $G91 & " " & TEXT($H91,"00000")) -> Brunswick, ME 04011 | B105: =IF(ISBLANK(OFFSET($E91,COLUMN()-1,0)),OFFSET($F91,COLUMN()-1,0) & ", " & OFFSET($G91,COLUMN()-1,0) & " " & TEXT(OFFSET($H91,COLUMN()-1,0),"00000"),OFFSET($E91,COLUMN()-1,0) ) -> Box 302 | C105: =IF(ISBLANK(OFFSET($E91,COLUMN()-1,0)),OFFSET($F91,COLUMN()-1,0) & ", " & OFFSET($G91,COLUMN()-1,0) & " " & TEXT(OFFSET($H91,COLUMN()-1,0),"00000"),OFFSET($E91,COLUMN()-1,0) ) -> Freeport, ME 04532 | D105: =IF(ISBLANK(OFFSET($E91,COLUMN()-1,0)),OFFSET($F91,COLUMN()-1,0) & ", " & OFFSET($G91,COLUMN()-1,0) & " " & TEXT(OFFSET($H91,COLUMN()-1,0),"00000"),OFFSET($E91,COLUMN()-1,0) ) -> Box 1515 | E105: =IF(ISBLANK(OFFSET($E91,COLUMN()-1,0)),OFFSET($F91,COLUMN()-1,0) & ", " & OFFSET($G91,COLUMN()-1,0) & " " & TEXT(OFFSET($H91,COLUMN()-1,0),"00000"),OFFSET($E91,COLUMN()-1,0) ) -> , 00000 | F105: , 00000 | G105: , 00000 | H105: , 00000 | I105: , 00000
A106: =IF(ISBLANK($E91),"",$F91&", "&$G91&" "&TEXT($H91,"00000")) ->  | B106: =IF(ISBLANK(OFFSET($E91,COLUMN()-1,0)),"",OFFSET($F91,COLUMN()-1,0) &", "&OFFSET($G91,COLUMN()-1,0) &" "&TEXT(OFFSET($H91,COLUMN()-1,0),"00000")) -> Portland, ME 04101 | C106: =IF(ISBLANK(OFFSET($E91,COLUMN()-1,0)),"",OFFSET($F91,COLUMN()-1,0) &", "&OFFSET($G91,COLUMN()-1,0) &" "&TEXT(OFFSET($H91,COLUMN()-1,0),"00000")) ->  | D106: =IF(ISBLANK(OFFSET($E91,COLUMN()-1,0)),"",OFFSET($F91,COLUMN()-1,0) &", "&OFFSET($G91,COLUMN()-1,0) &" "&TEXT(OFFSET($H91,COLUMN()-1,0),"00000")) -> Westbrook, ME 04521 | E106: =IF(ISBLANK(OFFSET($E91,COLUMN()-1,0)),"",OFFSET($F91,COLUMN()-1,0) &", "&OFFSET($G91,COLUMN()-1,0) &" "&TEXT(OFFSET($H91,COLUMN()-1,0),"00000")) -> 
A139: http://spreadsheetpage.com/index.php/site/joke/the_best_spreadsheets/

Sheet That's Special
B2: Special Features
A4: Hide Rows (7-8)
A5: We hold these truths to be self-evident,
A6: that all men are created equal
A7: Hide
A8: These
A9: Rows
A10: that they are endowed by their Creator with certain unalienable Rights,
A11: that among these are Life
A12: Liberty and the pursuit of Happiness.
A14: Copy Rows (5-12) below:
N24: Copy Range (N28-O54) to Starting Point (N65). Copy only the visible cells:
N26: Speech | O26: Year
N27: Lyceum Address | O27: 1838
N28: 1838 Count | O28: =SUBTOTAL(3,O27:O27) -> 1
N29: Temperance Address | O29: 1842
N30: 1842 Count | O30: =SUBTOTAL(3,O29:O29) -> 1
N31: Eulogy on Henry Clay | O31: 1852
N32: 1852 Count | O32: =SUBTOTAL(3,O31:O31) -> 1
N33: House Divided Speech | O33: 1858
N34: Lincoln-Douglas Debates | O34: 1858
N35: 1858 Count | O35: =SUBTOTAL(3,O33:O34) -> 2
N36: Second Lecture on Discoveries and Inventions | O36: 1859
N37: Address before the Wisconsin State Agricultural Society | O37: 1859
N38: 1859 Count | O38: =SUBTOTAL(3,O36:O37) -> 2
N39: Cooper Union Address | O39: 1860
N40: 1860 Count | O40: =SUBTOTAL(3,O39:O39) -> 1
N41: Farewell Address | O41: 1861
N42: Addresses to the New Jersey Senate/General Assembly | O42: 1861
N43: Address in Independence Hall | O43: 1861
N44: First Inaugural Address | O44: 1861
N45: 1861 Count | O45: =SUBTOTAL(3,O41:O44) -> 4
N46: Response to a Serenade | O46: 1863
N47: The Gettysburg Address | O47: 1863
N48: 1863 Count | O48: =SUBTOTAL(3,O46:O47) -> 2
N49: Speeches to Ohio Regiments | O49: 1864
N50: 1864 Count | O50: =SUBTOTAL(3,O49:O49) -> 1
N51: Second Inaugural Address | O51: 1865
N52: Last Public Address | O52: 1865
N53: 1865 Count | O53: =SUBTOTAL(3,O51:O52) -> 2
N54: Grand Count | O54: =SUBTOTAL(3,O27:O52) -> 17
R55: `
H62: http://www.mrexcel.com/articles/excel-copy-subtotals.php
D64: Copy Range (A62-B155) Paste Values Below: | N64: Paste Speech & Year from Above
A65: Cumberland | B65: =VLOOKUP(A65,$A$140:$B$156,2,FALSE) -> 47182.95238
A66: Sagadahoc | B66: =VLOOKUP(A66,$A$140:$B$156,2,FALSE) -> 44190.77778
A67: York | B67: 44189.2
A68: Androscoggin | B68: 42466.08333
A69: Kennebec | B69: 39325
A70: Lincoln | B70: 39184.86667
A71: Knox | B71: 37983.07143
A72: Hancock | B72: 35937.75
A73: Oxford | B73: 35092.59375
A74: Penobscot | B74: 34664.46154
A75: Waldo | B75: 33368.43478
A76: Franklin | B76: 31788.28571
A77: Somerset | B77: 30807.69565
A78: Aroostook | B78: 28149.04651
A79: Piscataquis | B79: 27991.625
A80: Washington | B80: 27590.52632
B85: Transpose (A86-A94) TO B86
A86: T
A87: R
A88: A
A89: N
A90: S | C90: =IF(CONCATENATE(B86,C86,D86,E86,F86,G86,H86,I86,J86) = "TRANSPOSE","Well Done","") -> 
A91: P
A92: O
A93: S
A94: E
A139: How are these values hidden? How are they used?
A140: Cumberland | B140: 47182.95238
A141: Sagadahoc | B141: 44190.77778
A142: York | B142: 44189.2
A143: Androscoggin | B143: 42466.08333
A144: Kennebec | B144: 39325
A145: Lincoln | B145: 39184.86667
A146: Knox | B146: 37983.07143
A147: Hancock | B147: 35937.75
A148: Oxford | B148: 35092.59375
A149: Penobscot | B149: 34664.46154
A150: Waldo | B150: 33368.43478
A151: Franklin | B151: 31788.28571
A152: Somerset | B152: 30807.69565
A153: Aroostook | B153: 28149.04651
A154: Piscataquis | B154: 27991.625
A155: Washington | B155: 27590.52632

Sheet Wheel
A1: Costly Spreadsheet Mistakes
A3: Press a Letter from the Alphabet Below to Find Costly Spreadsheet Mistakes
F4: A | G4: B | H4: C | I4: D | J4: E | K4: F | L4: G | M4: H | N4: I | O4: J | P4: K | Q4: L | R4: M | S4: N | T4: O | U4: P | V4: Q | W4: R | X4: S | Y4: T | Z4: U | AA4: V | AB4: W | AC4: X | AD4: Y | AE4: Z
A5: Westpac Jumps the Gun on Profit
A9: Reason | N9: Guesses Remaining | X9: 58
BC10: 0 | BD10: D
BC11: 5 | BD11: D+
BC12: 10 | BD12: C-
BC13: 15 | BD13: C
BC14: 20 | BD14: C+
BC15: 25 | BD15: B-
BC16: 30 | BD16: B
BC17: 35 | BD17: B+
BC18: 40 | BD18: A-
BC19: 46 | BD19: A
E20: =VLOOKUP(Guesses,BC10:BD20,2) -> A+ | BC20: 52 | BD20: A+
A32: http://www.cio.com/article/131500/Eight_of_the_Worst_Spreadsheet_Blunders?page=2
A50: Westpac Jumps the Gun on Profit | AV50: Inappropriate data in spreadsheet
A51: Fidelity's - Spreadsheet off by $2.6 billion. | AV51: Needed a minus sign
A52: The $24 Million "Clerical Error" at TransAlta | AV52: Cut and paste error
A53: Fannie Mae Discovers $1.3 Billion in shareholder equity | AV53: Honest mistake
A54: University of Toledo Loses $2.4 Million in Projected Revenue | AV54: Typo in a formula
A55: RedEnvelope Skids on Loss Forecast and Budgeting Error. Loosing one quarter of its value. | AV55: Error in one cell
A56: "Think-and-Do Tank" Flubs the Math, Think Tank reports 11% with bachelor's degree, it was actually 20%. | AV56: Cut and paste error
A57: Kodak Restates, Adds $9 million to Loss | AV57: Too many zeros

Sheet Rows & Columns
A1: Manipulating Rows & Columns
E4: Order the Months by Moving Columns
E6: January | F6: February | G6: May | H6: June | I6: July | J6: March | K6: September | L6: April | M6: October | N6: August | O6: December | P6: November
A8: Arrange the Declaration of Independence by adding, cutting & pasting rows. Begin by wrapping text.
A9: that among these are Life | B9: 4
A10: that all men are created equal | B10: 2
A11: that they are endowed by their Creator with certain unalienable Rights, | B11: 3
A12: Liberty and the pursuit of Happiness. | B12: 5
A13: We hold these truths to be self-evident, | B13: 1
C15: Format for Dollars & Cents,
C16: Spell Check Counties,
C17: Sort Alphabetically
C18: County | D18: Income
C19: Cumberland | D19: 47182.95238
C20: Sagadahoc | D20: 44190.77778
C21: York | D21: 44189.2
C22: Androscoggin | D22: 42466.08333
C23: Kennelbec | D23: 39325
C24: Lincoln | D24: 39184.86667
C25: Knox | D25: 37983.07143
C26: Hancock | D26: 35937.75
C27: Oxford | D27: 35092.59375
C28: Penobscot | D28: 34664.46154
C29: Waldo | D29: 33368.43478
C30: Franklin | D30: 31788.28571
C31: Somerset | D31: 30807.69565
C32: Aroostock | D32: 28149.04651
C33: Piscataquis | D33: 27991.625
C34: Washington | D34: 27590.52632
B36: T
B37: R
B38: A
B39: N
B40: S
B41: P
B42: O
B43: S
B44: E

Sheet Calculator
J2: Calculator Memory
J3: 0
A20: Exercise 1: Monthly Take Home
B21: Yearly Take Home: | D21: 70000
B22: Yearly Payroll Deductions: | D22: 16000
B23: Yearly Expenses: | D23: 45000
B24: Monthly Net: | D24: =(D21-D22-D23)/12 -> 750
A26: Exercise 2: Check Register
B27: Check Register
B28: Balance Forward | F28: 300
B29: Running Balance | F29: =SUM($F$31:$F$50)+$F$28 - SUM($E$31:$E$50) -> 1544.8
B30: Date | C30: Type | D30: Check No | E30: Debit | F30: Credit
B31: 2009-07-01 | C31: Salary | F31: 1500
B32: 2009-07-01 | C32: Check | D32: 101 | E32: 300
B33: 2009-07-02 | C33: Check | D33: 102 | E33: 55.2
B34: 2009-07-05 | C34: ATM | E34: 200
B35: 2009-07-06 | C35: Consulting | F35: 300
D54: Counts | E54: =SUBTOTAL(103,[Debit]) -> 3 | F54: =SUBTOTAL(103,[Credit]) -> 2
F55: =SUM($F$31:$F$50)+$F$28 - SUM($E$31:$E$50) -> 1544.8
A57: Exercise 3: Format and Print Check Register

Sheet Sheet1
